[Event "*** Titled Tuesday Blitz"]
[Site "Chess.com"]
[Date "2021.02.02"]
[Round "5"]
[White "Virgo15"]
[Black "Eloist"]
[Result "1-0"]
[WhiteElo "2604"]
[BlackElo "2355"]
[TimeControl "180+1"]
[EndTime "10:57:45 PST"]
[Termination "Virgo15 won by resignation"]

1. d4 {[%clk 0:03:00.9]} 1... e6 {[%clk 0:03:00]} 2. Nf3 {[%clk 0:02:59.2]} 2...
Nf6 {[%clk 0:03:00.1]} 3. Bf4 {[%clk 0:02:59.5]} 3... d5 {[%clk 0:02:59.5]} 4.
e3 {[%clk 0:02:59.9]} 4... c5 {[%clk 0:02:59.6]} 5. c3 {[%clk 0:02:59.3]} 5...
Nc6 {[%clk 0:02:59.5]} 6. Nbd2 {[%clk 0:02:59.7]} 6... Bd6 {[%clk 0:02:59.5]} 7.
Bg3 {[%clk 0:03:00.3]} 7... O-O {[%clk 0:02:59.2]} 8. Bd3 {[%clk 0:03:00.3]}
8... b6 {[%clk 0:02:59]} 9. e4 {[%clk 0:03:00.9]} 9... Be7 {[%clk 0:02:54.5]}
10. e5 {[%clk 0:03:01]} 10... Nh5 {[%clk 0:02:54.3]} 11. Ng5 {[%clk 0:03:01.5]}
11... Bxg5 {[%clk 0:02:52.2]} 12. Qxh5 {[%clk 0:03:00.4]} 12... g6 {[%clk
0:02:52]} 13. Qe2 {[%clk 0:02:59.8]} 13... cxd4 {[%clk 0:02:45.6]} 14. h4 {[%clk
0:03:00.2]} 14... Bxd2+ {[%clk 0:02:02]} 15. Qxd2 {[%clk 0:02:58.7]} 15... dxc3
{[%clk 0:02:01.8]} 16. bxc3 {[%clk 0:02:59.2]} 16... d4 {[%clk 0:01:45.4]} 17.
c4 {[%clk 0:02:54]} 17... f5 {[%clk 0:01:23.8]} 18. h5 {[%clk 0:02:51.6]} 18...
g5 {[%clk 0:01:21.4]} 19. f4 {[%clk 0:02:46.5]} 19... h6 {[%clk 0:01:13.3]} 20.
fxg5 {[%clk 0:02:43]} 20... hxg5 {[%clk 0:01:12.2]} 21. h6 {[%clk 0:02:42.8]}
21... f4 {[%clk 0:01:03.4]} 22. h7+ {[%clk 0:02:41.5]} 22... Kh8 {[%clk
0:01:02.7]} 23. Bf2 {[%clk 0:02:38.1]} 23... Nxe5 {[%clk 0:01:02.1]} 24. Be4
{[%clk 0:02:38]} 24... Nxc4 {[%clk 0:00:43.9]} 25. Qxd4+ {[%clk 0:02:25.3]}
25... Qxd4 {[%clk 0:00:40.7]} 26. Bxd4+ {[%clk 0:02:26.2]} 26... e5 {[%clk
0:00:40.8]} 27. Bc3 {[%clk 0:02:20.4]} 27... Be6 {[%clk 0:00:26.8]} 28. Bxa8
{[%clk 0:02:13.6]} 28... Rxa8 {[%clk 0:00:25.7]} 29. O-O-O {[%clk 0:02:09.9]}
29... Bf5 {[%clk 0:00:17.5]} 30. Rd6 {[%clk 0:01:52.5]} 30... Re8 {[%clk
0:00:13.4]} 31. Rc6 {[%clk 0:01:42.2]} 31... b5 {[%clk 0:00:12.4]} 32. a4 {[%clk
0:01:39.3]} 32... Rc8 {[%clk 0:00:09.2]} 33. axb5 {[%clk 0:01:32.3]} 33... Rxc6
{[%clk 0:00:06.6]} 34. bxc6 {[%clk 0:01:33.2]} 34... Bxh7 {[%clk 0:00:04.4]} 35.
c7 {[%clk 0:01:31.1]} 35... Nb6 {[%clk 0:00:04.4]} 36. Bxe5+ {[%clk 0:01:29.5]}
36... Kg8 {[%clk 0:00:04.5]} 37. Rd1 {[%clk 0:01:23.7]} 1-0

[Event "*** Titled Tuesday Blitz"]
[Site "Chess.com"]
[Date "2021.02.02"]
[Round "5"]
[White "Kretov_Evgenij"]
[Black "Kaua18"]
[Result "1-0"]
[WhiteElo "2556"]
[BlackElo "2393"]
[TimeControl "180+1"]
[EndTime "10:57:45 PST"]
[Termination "Kretov_Evgenij won by resignation"]

1. d4 {[%clk 0:03:00.9]} 1... Nf6 {[%clk 0:02:50.1]} 2. c4 {[%clk 0:03:00.8]}
2... e6 {[%clk 0:02:50.5]} 3. Nc3 {[%clk 0:03:00.4]} 3... Bb4 {[%clk 0:02:50.4]}
4. Bg5 {[%clk 0:03:00.5]} 4... h6 {[%clk 0:02:49.8]} 5. Bh4 {[%clk 0:03:00.5]}
5... c5 {[%clk 0:02:47.7]} 6. d5 {[%clk 0:02:59.8]} 6... exd5 {[%clk 0:02:42.2]}
7. cxd5 {[%clk 0:02:59.9]} 7... d6 {[%clk 0:02:42.6]} 8. e3 {[%clk 0:03:00]}
8... O-O {[%clk 0:02:41.1]} 9. Bd3 {[%clk 0:02:59.9]} 9... Nbd7 {[%clk
0:02:40.6]} 10. Ne2 {[%clk 0:02:59.7]} 10... Ne5 {[%clk 0:02:39.8]} 11. O-O
{[%clk 0:02:59.6]} 11... Re8 {[%clk 0:02:37.9]} 12. h3 {[%clk 0:02:57.1]} 12...
a6 {[%clk 0:02:35.4]} 13. Bc2 {[%clk 0:02:51.8]} 13... b5 {[%clk 0:02:34.2]} 14.
Ne4 {[%clk 0:02:51.7]} 14... g5 {[%clk 0:02:21.8]} 15. Nxf6+ {[%clk 0:02:51.3]}
15... Qxf6 {[%clk 0:02:22.7]} 16. Bg3 {[%clk 0:02:51.6]} 16... Bf5 {[%clk
0:02:16.5]} 17. e4 {[%clk 0:02:49.9]} 17... Bg6 {[%clk 0:02:15.3]} 18. f4 {[%clk
0:02:50]} 18... Nc4 {[%clk 0:02:10.1]} 19. e5 {[%clk 0:02:44]} 19... Qg7 {[%clk
0:01:41.8]} 20. f5 {[%clk 0:02:33.4]} 20... Ne3 {[%clk 0:01:31]} 21. fxg6 {[%clk
0:02:29]} 21... Nxd1 {[%clk 0:01:23.8]} 22. gxf7+ {[%clk 0:02:29]} 22... Kh8
{[%clk 0:01:13.9]} 23. fxe8=Q+ {[%clk 0:02:28.2]} 23... Rxe8 {[%clk 0:01:14.8]}
24. Raxd1 {[%clk 0:02:27.4]} 24... dxe5 {[%clk 0:01:09.8]} 25. Be4 {[%clk
0:02:18.8]} 25... c4 {[%clk 0:01:07.6]} 26. Bf2 {[%clk 0:02:15.5]} 26... Bd6
{[%clk 0:00:56.2]} 27. Ng3 {[%clk 0:02:15]} 27... Qc7 {[%clk 0:00:45]} 28. Kh2
{[%clk 0:02:11.8]} 28... b4 {[%clk 0:00:42.1]} 29. Nf5 {[%clk 0:02:05.8]} 29...
c3 {[%clk 0:00:29.4]} 30. bxc3 {[%clk 0:02:04]} 30... bxc3 {[%clk 0:00:30.3]}
31. Nxd6 {[%clk 0:02:03.2]} 31... Qxd6 {[%clk 0:00:30.4]} 32. Rc1 {[%clk
0:02:01.3]} 32... Qb4 {[%clk 0:00:20.7]} 33. Rfe1 {[%clk 0:02:01.3]} 33... Rc8
{[%clk 0:00:11.6]} 34. Bg3 {[%clk 0:02:00.7]} 34... Qd6 {[%clk 0:00:03.4]} 35.
Bf3 {[%clk 0:01:56.3]} 35... Kg8 {[%clk 0:00:02]} 36. Rxe5 {[%clk 0:01:54.8]}
36... Qa3 {[%clk 0:00:01.8]} 37. Rc2 {[%clk 0:01:54.2]} 37... Qa4 {[%clk
0:00:02.3]} 38. Be4 {[%clk 0:01:47.9]} 38... Qc4 {[%clk 0:00:01.9]} 39. d6
{[%clk 0:01:44.8]} 39... Kf7 {[%clk 0:00:01.6]} 40. Bd5+ {[%clk 0:01:42.2]}
40... Qxd5 {[%clk 0:00:01.5]} 41. Rxd5 {[%clk 0:01:42.6]} 41... Ke6 {[%clk
0:00:02.4]} 42. Re5+ {[%clk 0:01:40.3]} 1-0

[Event "*** Titled Tuesday Blitz"]
[Site "Chess.com"]
[Date "2021.02.02"]
[Round "5"]
[White "Oligan22"]
[Black "kekic76"]
[Result "1-0"]
[WhiteElo "2524"]
[BlackElo "2378"]
[TimeControl "180+1"]
[EndTime "10:57:46 PST"]
[Termination "Oligan22 won on time"]

1. e4 {[%clk 0:03:00.9]} 1... e6 {[%clk 0:02:58.1]} 2. d4 {[%clk 0:02:58.4]}
2... d5 {[%clk 0:02:58]} 3. Nd2 {[%clk 0:02:59.3]} 3... dxe4 {[%clk 0:02:53.9]}
4. Nxe4 {[%clk 0:02:59.3]} 4... Nd7 {[%clk 0:02:54.1]} 5. Nf3 {[%clk 0:02:59.4]}
5... Ngf6 {[%clk 0:02:54.3]} 6. Bd3 {[%clk 0:02:59.2]} 6... Be7 {[%clk
0:02:52.9]} 7. Qe2 {[%clk 0:02:58.1]} 7... b6 {[%clk 0:02:38.8]} 8. Nxf6+ {[%clk
0:02:49.9]} 8... Nxf6 {[%clk 0:02:36.1]} 9. Ne5 {[%clk 0:02:35]} 9... Bb7 {[%clk
0:02:08]} 10. Bb5+ {[%clk 0:02:30.8]} 10... Kf8 {[%clk 0:02:07.9]} 11. Nc6
{[%clk 0:02:00.4]} 11... Qd5 {[%clk 0:01:53.4]} 12. Nxe7 {[%clk 0:01:42.6]}
12... Kxe7 {[%clk 0:01:32.8]} 13. Be3 {[%clk 0:01:15.9]} 13... Qxg2 {[%clk
0:01:27.1]} 14. Rf1 {[%clk 0:01:15.9]} 14... Qf3 {[%clk 0:00:35.4]} 15. Qc4
{[%clk 0:01:07.9]} 15... c6 {[%clk 0:00:25.6]} 16. Qb4+ {[%clk 0:01:08.2]} 16...
Kd7 {[%clk 0:00:25.1]} 17. Be2 {[%clk 0:01:06.9]} 17... Qd5 {[%clk 0:00:20.5]}
18. c4 {[%clk 0:01:01.2]} 18... Qa5 {[%clk 0:00:19.4]} 19. Qxa5 {[%clk
0:00:50.2]} 19... bxa5 {[%clk 0:00:20.3]} 20. Rg1 {[%clk 0:00:51]} 20... g6
{[%clk 0:00:19.3]} 21. O-O-O {[%clk 0:00:51.9]} 21... a4 {[%clk 0:00:13.9]} 22.
Bf4 {[%clk 0:00:50.9]} 22... Rhe8 {[%clk 0:00:12.3]} 23. Be5 {[%clk 0:00:50.2]}
1-0

[Event "*** Titled Tuesday Blitz"]
[Site "Chess.com"]
[Date "2021.02.02"]
[Round "5"]
[White "Smirnov_Pavel"]
[Black "azikom"]
[Result "1-0"]
[WhiteElo "2877"]
[BlackElo "2664"]
[TimeControl "180+1"]
[EndTime "10:57:47 PST"]
[Termination "Smirnov_Pavel won on time"]

1. d4 {[%clk 0:03:00.9]} 1... d5 {[%clk 0:02:59.9]} 2. c4 {[%clk 0:03:00.4]}
2... c6 {[%clk 0:03:00.4]} 3. cxd5 {[%clk 0:02:58.2]} 3... cxd5 {[%clk
0:03:00.4]} 4. Bf4 {[%clk 0:02:58.9]} 4... Nf6 {[%clk 0:03:00.7]} 5. e3 {[%clk
0:02:59]} 5... Nc6 {[%clk 0:02:59.9]} 6. Nc3 {[%clk 0:02:59.1]} 6... a6 {[%clk
0:02:59.9]} 7. Be2 {[%clk 0:02:58.9]} 7... h6 {[%clk 0:02:56.5]} 8. h3 {[%clk
0:02:54.6]} 8... Bf5 {[%clk 0:02:53.4]} 9. Nf3 {[%clk 0:02:53.9]} 9... e6 {[%clk
0:02:53.3]} 10. Qb3 {[%clk 0:02:53.5]} 10... Ra7 {[%clk 0:02:47.4]} 11. O-O
{[%clk 0:02:41.9]} 11... Be7 {[%clk 0:02:47]} 12. Ne5 {[%clk 0:02:39.1]} 12...
Nxe5 {[%clk 0:02:45.7]} 13. Bxe5 {[%clk 0:02:37.8]} 13... O-O {[%clk 0:02:45.3]}
14. Rfc1 {[%clk 0:02:38]} 14... Nd7 {[%clk 0:02:42.5]} 15. Bg3 {[%clk
0:02:35.5]} 15... Qb6 {[%clk 0:02:14.6]} 16. Na4 {[%clk 0:02:28.7]} 16... Qxb3
{[%clk 0:02:13]} 17. axb3 {[%clk 0:02:29.6]} 17... Bd8 {[%clk 0:01:34.4]} 18.
Bd6 {[%clk 0:02:23.8]} 18... Re8 {[%clk 0:01:34.1]} 19. Rc8 {[%clk 0:02:24.4]}
19... Nf6 {[%clk 0:01:18.8]} 20. g4 {[%clk 0:02:20.2]} 20... Bg6 {[%clk
0:01:07.5]} 21. Rac1 {[%clk 0:02:00.4]} 21... b5 {[%clk 0:00:57.7]} 22. Nc5
{[%clk 0:01:59.2]} 22... Bb6 {[%clk 0:00:56.9]} 23. Rc6 {[%clk 0:01:56.9]} 23...
Bxc5 {[%clk 0:00:49.7]} 24. Bxc5 {[%clk 0:01:57.4]} 24... Raa8 {[%clk
0:00:48.7]} 25. Ra1 {[%clk 0:01:57.5]} 25... a5 {[%clk 0:00:43.5]} 26. Bxb5
{[%clk 0:01:56.6]} 26... Reb8 {[%clk 0:00:42.8]} 27. Ba4 {[%clk 0:01:54.2]}
27... Bc2 {[%clk 0:00:36.9]} 28. Bd6 {[%clk 0:01:53.1]} 28... Rc8 {[%clk
0:00:33.6]} 29. Rxc8+ {[%clk 0:01:52.9]} 29... Rxc8 {[%clk 0:00:33]} 30. Rc1
{[%clk 0:01:53.4]} 30... Ne4 {[%clk 0:00:17.2]} 31. Be5 {[%clk 0:01:38]} 31...
f6 {[%clk 0:00:14.2]} 32. Bd7 {[%clk 0:01:35.9]} 32... Rd8 {[%clk 0:00:10.7]}
33. Bxe6+ {[%clk 0:01:35.6]} 33... Kf8 {[%clk 0:00:09.9]} 34. Bc7 {[%clk
0:01:32.5]} 34... Re8 {[%clk 0:00:07.3]} 35. Bxd5 {[%clk 0:01:32.4]} 35... Bd3
{[%clk 0:00:07.7]} 36. Bxa5 {[%clk 0:01:32.2]} 36... Ng5 {[%clk 0:00:04.8]} 37.
Bb4+ {[%clk 0:01:30.5]} 1-0

[Event "*** Titled Tuesday Blitz"]
[Site "Chess.com"]
[Date "2021.02.02"]
[Round "5"]
[White "motivated_bishop"]
[Black "NateSolon"]
[Result "0-1"]
[WhiteElo "2388"]
[BlackElo "2542"]
[TimeControl "180+1"]
[EndTime "10:57:51 PST"]
[Termination "NateSolon won by resignation"]

1. d4 {[%clk 0:03:00.9]} 1... d5 {[%clk 0:02:59.2]} 2. c4 {[%clk 0:03:00.8]}
2... c6 {[%clk 0:02:58.3]} 3. cxd5 {[%clk 0:03:00.9]} 3... cxd5 {[%clk
0:02:59.2]} 4. Bf4 {[%clk 0:03:01.3]} 4... Nc6 {[%clk 0:02:58.2]} 5. e3 {[%clk
0:03:01.7]} 5... Nf6 {[%clk 0:02:58.3]} 6. Nc3 {[%clk 0:03:02]} 6... a6 {[%clk
0:02:58]} 7. Be2 {[%clk 0:03:00.1]} 7... Bf5 {[%clk 0:02:49.7]} 8. Nf3 {[%clk
0:02:51.6]} 8... e6 {[%clk 0:02:49.9]} 9. O-O {[%clk 0:02:47.3]} 9... Bd6 {[%clk
0:02:49.7]} 10. Bxd6 {[%clk 0:02:47.1]} 10... Qxd6 {[%clk 0:02:50.6]} 11. Qb3
{[%clk 0:02:44]} 11... b5 {[%clk 0:02:42.2]} 12. Rfc1 {[%clk 0:02:43.7]} 12...
O-O {[%clk 0:02:41]} 13. a4 {[%clk 0:02:43]} 13... b4 {[%clk 0:02:16.2]} 14. Na2
{[%clk 0:02:43.1]} 14... Rab8 {[%clk 0:01:52]} 15. Ne1 {[%clk 0:02:29.4]} 15...
Na5 {[%clk 0:01:34.7]} 16. Qd1 {[%clk 0:02:29.4]} 16... b3 {[%clk 0:01:23.9]}
17. Nc3 {[%clk 0:02:26.8]} 17... Rfc8 {[%clk 0:01:23.9]} 18. Nd3 {[%clk
0:02:23.9]} 18... Nc4 {[%clk 0:01:23.9]} 19. Rab1 {[%clk 0:01:50.4]} 19... h6
{[%clk 0:01:23.1]} 20. Qe1 {[%clk 0:01:23.8]} 20... Rc7 {[%clk 0:01:14.4]} 21.
Nd1 {[%clk 0:01:23.7]} 21... Ne4 {[%clk 0:01:08]} 22. Ra1 {[%clk 0:01:11.8]}
22... Rbc8 {[%clk 0:01:06]} 23. Qb4 {[%clk 0:00:55.1]} 23... Qxb4 {[%clk
0:00:55.8]} 24. Nxb4 {[%clk 0:00:55.3]} 24... a5 {[%clk 0:00:56.7]} 25. Na6
{[%clk 0:00:55.3]} 25... Rc6 {[%clk 0:00:56.6]} 26. f3 {[%clk 0:00:32.6]} 26...
Rxa6 {[%clk 0:00:48.4]} 27. fxe4 {[%clk 0:00:32.7]} 27... Bxe4 {[%clk
0:00:49.3]} 28. Ra3 {[%clk 0:00:31.8]} 28... Bc2 {[%clk 0:00:48.3]} 29. Nc3
{[%clk 0:00:25.2]} 29... Rac6 {[%clk 0:00:45.6]} 30. Bxc4 {[%clk 0:00:25.1]}
30... Rxc4 {[%clk 0:00:46.4]} 31. Kf2 {[%clk 0:00:24.6]} 31... Rxc3 {[%clk
0:00:44.3]} 32. bxc3 {[%clk 0:00:24.1]} 32... b2 {[%clk 0:00:44.7]} 0-1

[Event "*** Titled Tuesday Blitz"]
[Site "Chess.com"]
[Date "2021.02.02"]
[Round "5"]
[White "Chamal_Gedgafov"]
[Black "sorrm8thatscheckm8"]
[Result "0-1"]
[WhiteElo "2362"]
[BlackElo "2562"]
[TimeControl "180+1"]
[EndTime "10:57:55 PST"]
[Termination "sorrm8thatscheckm8 won on time"]

1. e4 {[%clk 0:03:00.9]} 1... c5 {[%clk 0:02:59.5]} 2. Nf3 {[%clk 0:02:59.1]}
2... Nc6 {[%clk 0:02:59.9]} 3. d4 {[%clk 0:02:58]} 3... cxd4 {[%clk 0:03:00.8]}
4. Nxd4 {[%clk 0:02:58]} 4... Nf6 {[%clk 0:03:01.3]} 5. Nc3 {[%clk 0:02:57.2]}
5... e5 {[%clk 0:03:01.8]} 6. Ndb5 {[%clk 0:02:56.8]} 6... d6 {[%clk 0:03:02.2]}
7. Bg5 {[%clk 0:02:56.4]} 7... a6 {[%clk 0:03:00.7]} 8. Na3 {[%clk 0:02:55.9]}
8... b5 {[%clk 0:02:44.1]} 9. Nd5 {[%clk 0:02:54.8]} 9... Be7 {[%clk 0:02:44.4]}
10. Bxf6 {[%clk 0:02:53.2]} 10... Bxf6 {[%clk 0:02:45.3]} 11. c4 {[%clk
0:02:52.6]} 11... b4 {[%clk 0:02:44.2]} 12. Nc2 {[%clk 0:02:51.3]} 12... O-O
{[%clk 0:02:43.7]} 13. Be2 {[%clk 0:02:50.2]} 13... Be6 {[%clk 0:02:41.3]} 14.
O-O {[%clk 0:02:49]} 14... a5 {[%clk 0:02:39]} 15. Qd3 {[%clk 0:02:46.2]} 15...
Bg5 {[%clk 0:02:36.5]} 16. Rad1 {[%clk 0:02:44.4]} 16... g6 {[%clk 0:02:34.7]}
17. g3 {[%clk 0:02:34.4]} 17... f5 {[%clk 0:02:31.9]} 18. Bf3 {[%clk 0:02:33.6]}
18... f4 {[%clk 0:02:30.2]} 19. Qe2 {[%clk 0:02:24]} 19... Rb8 {[%clk
0:02:29.9]} 20. b3 {[%clk 0:02:22.9]} 20... h5 {[%clk 0:02:27.2]} 21. c5 {[%clk
0:02:12.4]} 21... Bh3 {[%clk 0:02:14.6]} 22. Rfe1 {[%clk 0:02:10.2]} 22... fxg3
{[%clk 0:02:11.3]} 23. hxg3 {[%clk 0:02:09.1]} 23... Qe8 {[%clk 0:02:09.9]} 24.
cxd6 {[%clk 0:02:01.3]} 24... Qf7 {[%clk 0:02:10.2]} 25. Rd3 {[%clk 0:01:44.8]}
25... Rbd8 {[%clk 0:01:59.5]} 26. Nb6 {[%clk 0:01:19.2]} 26... h4 {[%clk
0:01:41.9]} 27. Nc4 {[%clk 0:01:13.7]} 27... hxg3 {[%clk 0:01:37.3]} 28. fxg3
{[%clk 0:01:13.3]} 28... Be6 {[%clk 0:01:28]} 29. Nb6 {[%clk 0:00:33.4]} 29...
Kg7 {[%clk 0:01:26.6]} 30. Bg2 {[%clk 0:00:29.9]} 30... Qa7 {[%clk 0:01:22.4]}
31. Ne3 {[%clk 0:00:08.7]} 31... Qxb6 {[%clk 0:01:21.2]} 32. Rc1 {[%clk
0:00:05.9]} 32... Nd4 {[%clk 0:01:20.6]} 33. Qd2 {[%clk 0:00:04.1]} 33... Rf3
{[%clk 0:01:18.6]} 0-1

[Event "*** Titled Tuesday Blitz"]
[Site "Chess.com"]
[Date "2021.02.02"]
[Round "5"]
[White "klimkoj"]
[Black "imdvb6307"]
[Result "1-0"]
[WhiteElo "2558"]
[BlackElo "2373"]
[TimeControl "180+1"]
[EndTime "10:57:58 PST"]
[Termination "klimkoj won on time"]

1. d4 {[%clk 0:03:00.9]} 1... d5 {[%clk 0:02:58.8]} 2. c4 {[%clk 0:03:00.5]}
2... c6 {[%clk 0:02:58.6]} 3. Nf3 {[%clk 0:02:59.8]} 3... Nf6 {[%clk 0:02:58.4]}
4. Nc3 {[%clk 0:02:59.9]} 4... e6 {[%clk 0:02:58.1]} 5. e3 {[%clk 0:02:56.2]}
5... Nbd7 {[%clk 0:02:58.1]} 6. Qc2 {[%clk 0:02:56]} 6... Bd6 {[%clk 0:02:57.5]}
7. Bd3 {[%clk 0:02:55]} 7... O-O {[%clk 0:02:53.6]} 8. O-O {[%clk 0:02:54.3]}
8... dxc4 {[%clk 0:02:48.9]} 9. Bxc4 {[%clk 0:02:55.2]} 9... e5 {[%clk
0:02:49.2]} 10. Rd1 {[%clk 0:02:39.1]} 10... Qe7 {[%clk 0:02:48.3]} 11. e4
{[%clk 0:02:23.1]} 11... exd4 {[%clk 0:02:26.8]} 12. Nxd4 {[%clk 0:02:24]} 12...
Ne5 {[%clk 0:02:10.8]} 13. Be2 {[%clk 0:02:22.4]} 13... Neg4 {[%clk 0:02:09.8]}
14. h3 {[%clk 0:02:06]} 14... Nxf2 {[%clk 0:00:04.4]} 15. Kxf2 {[%clk
0:01:50.5]} 15... Qe5 {[%clk 0:00:03.9]} 16. Qd3 {[%clk 0:01:34.7]} 16... Bc5
{[%clk 0:00:03.1]} 17. Be3 {[%clk 0:01:32.7]} 17... Rd8 {[%clk 0:00:02.3]} 18.
b4 {[%clk 0:01:02.7]} 18... Bb6 {[%clk 0:00:02]} 19. Nf3 {[%clk 0:00:30.2]} 1-0

[Event "*** Titled Tuesday Blitz"]
[Site "Chess.com"]
[Date "2021.02.02"]
[Round "5"]
[White "Saxar85"]
[Black "Chopper1905"]
[Result "0-1"]
[WhiteElo "2796"]
[BlackElo "2929"]
[TimeControl "180+1"]
[EndTime "10:58:00 PST"]
[Termination "Chopper1905 won on time"]

1. Nf3 {[%clk 0:03:00.9]} 1... d5 {[%clk 0:02:59.5]} 2. g3 {[%clk 0:02:57.7]}
2... g6 {[%clk 0:02:59.7]} 3. d4 {[%clk 0:02:55]} 3... Bg7 {[%clk 0:03:00.1]} 4.
Bg2 {[%clk 0:02:54.8]} 4... Nf6 {[%clk 0:03:00.5]} 5. c4 {[%clk 0:02:55]} 5...
c6 {[%clk 0:03:00.5]} 6. cxd5 {[%clk 0:02:54.9]} 6... cxd5 {[%clk 0:03:00.2]} 7.
Ne5 {[%clk 0:02:55]} 7... O-O {[%clk 0:02:58.8]} 8. Nc3 {[%clk 0:02:53.9]} 8...
Nc6 {[%clk 0:02:56.3]} 9. Nxc6 {[%clk 0:02:52]} 9... bxc6 {[%clk 0:02:56.2]} 10.
O-O {[%clk 0:02:51.9]} 10... Nd7 {[%clk 0:02:49.9]} 11. e4 {[%clk 0:02:34.9]}
11... e6 {[%clk 0:02:43.6]} 12. Be3 {[%clk 0:02:32.1]} 12... a5 {[%clk 0:02:39]}
13. Qd2 {[%clk 0:02:29.7]} 13... a4 {[%clk 0:02:35]} 14. Rac1 {[%clk 0:02:18.4]}
14... Nb6 {[%clk 0:02:00]} 15. b3 {[%clk 0:02:17.7]} 15... axb3 {[%clk
0:01:58.5]} 16. axb3 {[%clk 0:02:17.2]} 16... Qe7 {[%clk 0:01:58]} 17. Bh6
{[%clk 0:01:51.2]} 17... Bd7 {[%clk 0:01:40.5]} 18. Bxg7 {[%clk 0:01:42.3]}
18... Kxg7 {[%clk 0:01:41.4]} 19. Ne2 {[%clk 0:01:27.8]} 19... Ra3 {[%clk
0:01:37.5]} 20. Rc3 {[%clk 0:01:23.9]} 20... Rfa8 {[%clk 0:01:35.8]} 21. Nf4
{[%clk 0:01:23.2]} 21... Qb4 {[%clk 0:01:24.7]} 22. Qe3 {[%clk 0:00:25.4]} 22...
Nc4 {[%clk 0:01:24.5]} 23. Qd3 {[%clk 0:00:23.6]} 23... Nd6 {[%clk 0:01:24.8]}
24. Rcc1 {[%clk 0:00:11.8]} 24... dxe4 {[%clk 0:01:19.6]} 25. Bxe4 {[%clk
0:00:09.9]} 25... Rxb3 {[%clk 0:01:20]} 26. Qe2 {[%clk 0:00:10.1]} 26... Rb2
{[%clk 0:01:12.2]} 27. Qe3 {[%clk 0:00:09.5]} 27... Ra3 {[%clk 0:01:10.9]} 28.
Nd3 {[%clk 0:00:09.3]} 28... Qb5 {[%clk 0:01:02.6]} 29. Rfd1 {[%clk 0:00:09.1]}
29... Rbb3 {[%clk 0:01:00.2]} 30. Rc5 {[%clk 0:00:03]} 30... Qa6 {[%clk
0:00:56]} 0-1

[Event "*** Titled Tuesday Blitz"]
[Site "Chess.com"]
[Date "2021.02.02"]
[Round "5"]
[White "FedaMaster"]
[Black "Vaathi_Coming"]
[Result "0-1"]
[WhiteElo "2545"]
[BlackElo "2839"]
[TimeControl "180+1"]
[EndTime "10:58:03 PST"]
[Termination "Vaathi_Coming won by resignation"]

1. e4 {[%clk 0:03:00.9]} 1... g6 {[%clk 0:02:59.6]} 2. d4 {[%clk 0:02:59.8]}
2... Bg7 {[%clk 0:03:00.5]} 3. Nf3 {[%clk 0:02:58.5]} 3... d6 {[%clk 0:02:59.8]}
4. Bd3 {[%clk 0:02:57.6]} 4... Nf6 {[%clk 0:02:58.8]} 5. O-O {[%clk 0:02:58.1]}
5... O-O {[%clk 0:02:59.1]} 6. c3 {[%clk 0:02:56.8]} 6... c6 {[%clk 0:02:51.3]}
7. Re1 {[%clk 0:02:48.9]} 7... Qc7 {[%clk 0:02:51.5]} 8. e5 {[%clk 0:02:48.6]}
8... dxe5 {[%clk 0:02:52.4]} 9. Nxe5 {[%clk 0:02:48.8]} 9... Nbd7 {[%clk
0:02:45.3]} 10. Nxd7 {[%clk 0:01:59.9]} 10... Bxd7 {[%clk 0:02:45.2]} 11. Qf3
{[%clk 0:01:57.3]} 11... Bg4 {[%clk 0:02:29.5]} 12. Qg3 {[%clk 0:01:56.9]} 12...
Qd7 {[%clk 0:02:30]} 13. h3 {[%clk 0:01:47.6]} 13... Bf5 {[%clk 0:02:26.7]} 14.
Bxf5 {[%clk 0:01:45.6]} 14... Qxf5 {[%clk 0:02:27.6]} 15. Rxe7 {[%clk
0:01:19.1]} 15... Rfe8 {[%clk 0:02:24.1]} 16. Rxe8+ {[%clk 0:01:17.8]} 16...
Rxe8 {[%clk 0:02:25]} 17. Be3 {[%clk 0:01:17.6]} 17... Qc2 {[%clk 0:02:19.1]}
18. Nd2 {[%clk 0:01:17.7]} 18... Nd5 {[%clk 0:02:11.7]} 19. Nc4 {[%clk
0:01:14.3]} 19... b5 {[%clk 0:02:00.4]} 20. Nd6 {[%clk 0:01:13.6]} 20... Re6
{[%clk 0:01:45.4]} 21. c4 {[%clk 0:00:39.8]} 21... Qxb2 {[%clk 0:01:01.4]} 22.
Rc1 {[%clk 0:00:38]} 22... Nxe3 {[%clk 0:00:59.2]} 23. Re1 {[%clk 0:00:19.5]}
23... Nf5 {[%clk 0:00:51.7]} 24. Nxf5 {[%clk 0:00:18.3]} 24... Rxe1+ {[%clk
0:00:51.7]} 25. Kh2 {[%clk 0:00:19.2]} 25... gxf5 {[%clk 0:00:51.9]} 26. Qb8+
{[%clk 0:00:19]} 26... Bf8 {[%clk 0:00:52.4]} 27. Qg3+ {[%clk 0:00:19.3]} 27...
Kh8 {[%clk 0:00:52.5]} 28. Qb8 {[%clk 0:00:15.9]} 28... Qa3 {[%clk 0:00:38.8]}
29. c5 {[%clk 0:00:16.5]} 29... Kg8 {[%clk 0:00:38]} 30. Qg3+ {[%clk 0:00:17]}
30... Qxg3+ {[%clk 0:00:37.8]} 31. Kxg3 {[%clk 0:00:17.9]} 31... Rd1 {[%clk
0:00:37.2]} 0-1

[Event "*** Titled Tuesday Blitz"]
[Site "Chess.com"]
[Date "2021.02.02"]
[Round "5"]
[White "andrewtnb"]
[Black "GCamachoMartinez"]
[Result "0-1"]
[WhiteElo "2293"]
[BlackElo "2430"]
[TimeControl "180+1"]
[EndTime "10:58:03 PST"]
[Termination "GCamachoMartinez won by resignation"]

1. d4 {[%clk 0:03:00.8]} 1... Nf6 {[%clk 0:02:55.3]} 2. c4 {[%clk 0:02:59.3]}
2... g6 {[%clk 0:02:51.1]} 3. Nc3 {[%clk 0:02:56.9]} 3... d5 {[%clk 0:02:51]} 4.
cxd5 {[%clk 0:02:55.3]} 4... Nxd5 {[%clk 0:02:50.6]} 5. e4 {[%clk 0:02:55.7]}
5... Nxc3 {[%clk 0:02:50.6]} 6. bxc3 {[%clk 0:02:55.2]} 6... Bg7 {[%clk
0:02:51.1]} 7. Nf3 {[%clk 0:02:53.9]} 7... c5 {[%clk 0:02:48.1]} 8. Be2 {[%clk
0:02:53]} 8... O-O {[%clk 0:02:46.5]} 9. O-O {[%clk 0:02:52.2]} 9... b6 {[%clk
0:02:39.7]} 10. Bg5 {[%clk 0:02:45.1]} 10... Bb7 {[%clk 0:02:34.7]} 11. Bd3
{[%clk 0:02:43.2]} 11... cxd4 {[%clk 0:02:09]} 12. cxd4 {[%clk 0:02:36.3]} 12...
Nc6 {[%clk 0:02:09]} 13. d5 {[%clk 0:02:17.1]} 13... Nb4 {[%clk 0:01:59.7]} 14.
Bc4 {[%clk 0:01:52.5]} 14... h6 {[%clk 0:01:53.7]} 15. Bd2 {[%clk 0:01:47.3]}
15... Na6 {[%clk 0:01:35.5]} 16. Qe2 {[%clk 0:01:15.8]} 16... Nc5 {[%clk
0:01:31.4]} 17. Rad1 {[%clk 0:01:13.6]} 17... a6 {[%clk 0:01:23.2]} 18. Be3
{[%clk 0:01:10.4]} 18... Qd6 {[%clk 0:01:08.6]} 19. e5 {[%clk 0:00:55.8]} 19...
Qc7 {[%clk 0:00:50.5]} 20. d6 {[%clk 0:00:49]} 20... exd6 {[%clk 0:00:51.4]} 21.
Rxd6 {[%clk 0:00:40.3]} 21... b5 {[%clk 0:00:44.3]} 22. Bd5 {[%clk 0:00:23.9]}
22... Bxd5 {[%clk 0:00:33.5]} 23. Rxd5 {[%clk 0:00:24.8]} 23... Na4 {[%clk
0:00:34.1]} 24. Qd2 {[%clk 0:00:21.8]} 24... Rad8 {[%clk 0:00:32.2]} 25. Rd1
{[%clk 0:00:17.7]} 25... Rxd5 {[%clk 0:00:32.1]} 26. Qxd5 {[%clk 0:00:17.9]}
26... Nc3 {[%clk 0:00:32.7]} 27. Qc5 {[%clk 0:00:16.7]} 27... Qxc5 {[%clk
0:00:31.9]} 28. Bxc5 {[%clk 0:00:17.5]} 28... Nxd1 {[%clk 0:00:32.5]} 0-1